bitfinex-derivatives/quotes_BTCF0:USTF0_20250218
["timestamp","ask_amount","ask_price","bid_price","bid_amount"]
[1739894062251,0.2092561,95594.0,95592.0,0.00015696]
[1739894062446,0.2666451,95599.0,95592.0,0.00015696]
[1739894062643,0.2666451,95599.0,95597.0,0.209249]
[1739894062847,0.0574,95599.0,95597.0,0.209249]
[1739894063048,0.209247,95598.0,95597.0,0.209249]
[1739894063455,0.0574,95599.0,95598.0,0.209247]
[1739894063759,0.2636448,95599.0,95598.0,0.209247]
[1739894063957,0.2666448,95599.0,95598.0,0.209247]
[1739894065759,0.2636448,95599.0,95598.0,0.209247]
[1739894066950,0.2636448,95599.0,95598.0,0.210247]
[1739894067258,0.2666448,95599.0,95598.0,0.210247]
[1739894067959,0.2666448,95599.0,95598.0,0.001]
[1739894069462,0.2666448,95599.0,95598.0,0.210247]
[1739894069667,0.0574,95599.0,95598.0,0.210247]
[1739894070555,0.003,95599.0,95598.0,0.571047]
[1739894070755,0.003,95599.0,95598.0,0.3608]
[1739894071058,0.003,95599.0,95598.0,0.696287]
[1739894071249,0.003,95599.0,95598.0,0.570047]
[1739894071649,0.2122448,95599.0,95593.0,0.2092575]
[1739894071853,0.2122448,95599.0,95592.0,0.00987782]
[1739894071854,0.003,95599.0,95592.0,0.00987782]
[1739894072051,0.2092577,95594.0,95592.0,0.00987782]
[1739894072249,0.209258,95593.0,95592.0,0.00987782]
[1739894073052,0.0587,95598.0,95592.0,0.00987782]
[1739894073460,0.003,95594.0,95592.0,0.00987782]
[1739894074066,0.003,95594.0,95593.0,0.2092559]
[1739894074270,0.003,95593.0,95592.0,0.00987782]
[1739894074457,0.003,95593.0,95592.0,0.21913792]
[1739894076666,0.0587,95598.0,95595.0,0.2092529]
[1739894077063,0.0587,95598.0,95592.0,0.00987782]
[1739894077371,0.2679475,95598.0,95592.0,0.00987782]
[1739894077670,0.003,95593.0,95592.0,0.00987782]
[1739894078561,0.0588,95593.0,95592.0,0.00987782]
[1739894078965,0.4196,95593.0,95592.0,0.00015696]
[1739894079166,0.7196,95593.0,95578.0,0.00156924]
[1739894079374,0.7196,95593.0,95560.0,0.3608]
[1739894079375,0.2093163,95567.0,95560.0,0.3608]
[1739894079663,0.1695,95566.0,95560.0,0.3608]
[1739894079871,0.2093208,95565.0,95560.0,0.3608]
[1739894080058,0.1695,95566.0,95560.0,0.3608]
[1739894080262,0.2093223,95564.0,95560.0,0.3705246]
[1739894080569,0.2093254,95563.0,95560.0,0.3705246]
[1739894080765,0.2093254,95563.0,95553.0,0.00015696]
[1739894080766,0.1695,95566.0,95553.0,0.00015696]
[1739894080973,0.5701423,95555.0,95553.0,0.00015696]
[1739894081171,0.2093423,95555.0,95553.0,0.00015696]
[1739894082071,0.18693937,95566.0,95554.0,0.3608]
[1739894082072,0.2093266,95562.0,95554.0,0.3608]
[1739894082260,0.17732859,95566.0,95554.0,0.3608]
[1739894082460,0.17732859,95566.0,95564.0,0.2093213]
[1739894083061,0.38664719,95566.0,95557.0,0.2093355]
[1739894083263,0.38664719,95566.0,95558.0,0.2093339]
[1739894083469,0.2093199,95565.0,95559.0,0.2093318]
[1739894083674,0.209339,95556.0,95553.0,0.00015696]
[1739894083871,0.17732859,95566.0,95553.0,0.00015696]
[1739894083872,0.2093434,95554.0,95553.0,0.00015696]
[1739894084273,0.3608,95560.0,95544.0,0.91224]
[1739894084572,0.2063718,95541.0,95540.0,0.00156975]
[1739894085766,0.5671718,95541.0,95540.0,0.00156975]
[1739894086298,0.2063718,95541.0,95540.0,0.00156975]
[1739894086872,0.1126,95544.0,95540.0,0.00156975]
[1739894087376,0.3608,95541.0,95540.0,0.00156975]
[1739894088077,0.2093916,95532.0,95531.0,0.00015696]
[1739894088278,0.5701916,95532.0,95531.0,0.00015696]
[1739894089673,0.58003155,95532.0,95531.0,0.00015696]
[1739894090381,0.37063995,95532.0,95512.0,0.91232]
[1739894090679,0.3608,95519.0,95513.0,0.1246]
[1739894090875,0.3608,95519.0,95517.0,0.2094241]
[1739894091179,0.5702208,95519.0,95517.0,0.2094241]
[1739894091575,0.0541,95522.0,95520.0,0.209417]
[1739894091877,0.00015704,95528.0,95523.0,0.2094108]
[1739894092177,0.00015704,95528.0,95526.0,0.2094025]
[1739894094177,0.00015704,95528.0,95520.0,0.2675167]
[1739894094373,0.2094025,95527.0,95520.0,0.2675167]
[1739894094585,0.2094025,95527.0,95524.0,0.209409]
[1739894094780,0.2094025,95527.0,95525.0,0.2094057]
[1739894095168,0.00115704,95528.0,95527.0,0.2094025]
[1739894095367,0.00015704,95528.0,95527.0,0.2094025]
[1739894096477,0.0578,95549.0,95542.0,0.2093697]
[1739894096677,0.0578,95549.0,95539.0,0.3608]
[1739894096879,0.2093384,95557.0,95540.0,0.124]
[1739894097183,0.2093352,95558.0,95554.0,0.209343]
[1739894097378,0.323334,95559.0,95554.0,0.2093419]
[1739894097888,0.323334,95559.0,95554.0,0.0097938]
[1739894098183,0.323334,95559.0,95547.0,0.3608]
[1739894098383,0.2093364,95558.0,95547.0,0.3608]
[1739894098577,0.2093376,95557.0,95556.0,0.2093361]
[1739894098776,0.0578,95565.0,95564.0,0.2093215]
[1739894099278,0.00015704,95566.0,95564.0,0.2093215]
[1739894100786,0.68577,95588.0,95560.0,0.0569]
[1739894101084,0.4765,95588.0,95576.0,0.2092943]
[1739894101322,0.4765,95588.0,95574.0,0.3608]
[1739894101503,0.3608,95580.0,95562.0,0.2093247]
[1739894101809,0.2092919,95578.0,95562.0,0.01018455]
[1739894102011,0.12631924,95580.0,95561.0,0.36095695]
[1739894102203,0.00015678,95581.0,95561.0,0.36095695]
[1739894102399,0.00015678,95581.0,95561.0,0.3709623]
[1739894102700,0.00015678,95581.0,95579.0,0.2092876]
[1739894103092,0.00015678,95581.0,95577.0,0.3608]
[1739894103503,0.00015678,95581.0,95579.0,0.2092877]
[1739894103700,0.00015678,95581.0,95579.0,0.21939858]
[1739894106098,0.00615678,95581.0,95579.0,0.22039858]
[1739894106699,0.00015678,95581.0,95579.0,0.22239858]
[1739894109486,0.00015678,95581.0,95579.0,0.21939858]
[1739894109687,0.00315678,95581.0,95579.0,0.21939858]
[1739894109987,0.00315678,95581.0,95579.0,0.21939798]
[1739894110188,0.00015678,95581.0,95579.0,0.2092871]
[1739894110693,0.2092889,95579.0,95577.0,0.3608]
[1739894111487,0.1686,95580.0,95577.0,0.370551]
[1739894111687,0.1686,95580.0,95579.0,0.2092886]
[1739894112286,0.00315678,95581.0,95579.0,0.2092886]
[1739894112885,0.00315678,95581.0,95580.0,0.0559]
[1739894113092,0.00015678,95581.0,95580.0,0.0559]
[1739894113288,0.00515678,95581.0,95580.0,0.0559]
[1739894114411,0.00315678,95581.0,95580.0,0.0559]
[1739894114801,0.00315678,95581.0,95578.0,0.1192]
[1739894115012,0.00315678,95581.0,95577.0,0.370551]
[1739894115013,0.2092908,95578.0,95577.0,0.370551]
[1739894115604,0.0587,95580.0,95577.0,0.370551]
[1739894115807,0.0587,95580.0,95578.0,0.2092902]
[1739894116205,0.00315678,95581.0,95580.0,0.2092864]
[1739894117016,0.00315678,95581.0,95577.0,0.370551]
[1739894117407,0.00315678,95581.0,95579.0,0.2092864]
[1739894117610,0.2092897,95579.0,95577.0,0.370551]
[1739894117809,0.1144,95578.0,95577.0,0.579844]
[1739894118326,0.0589,95578.0,95577.0,0.579844]
[1739894118510,0.00115678,95581.0,95580.0,0.2092864]
[1739894119212,0.00015678,95581.0,95580.0,0.2092864]
[1739894119713,0.00769403,95599.0,95598.0,0.209247]
[1739894119883,0.00769403,95599.0,95598.0,0.570047]
[1739894120497,0.0564,95604.0,95598.0,0.3608]
[1739894120700,0.0564,95604.0,95601.0,0.2092391]
[1739894121288,0.06415529,95604.0,95601.0,0.00999946]
[1739894121489,0.06415529,95604.0,95603.0,0.2092361]
[1739894122192,0.06415529,95604.0,95598.0,0.3608]
[1739894122193,0.2092361,95603.0,95601.0,0.010089]
[1739894122393,0.2092361,95603.0,95591.0,0.36095695]
[1739894122588,0.06415529,95604.0,95591.0,0.36095695]
[1739894122790,0.06415529,95604.0,95602.0,0.2092374]
[1739894123196,0.0624,95604.0,95602.0,0.2092374]
[1739894124295,0.00515658,95604.0,95602.0,0.2092374]
[1739894124500,0.00515658,95604.0,95603.0,0.1143]
[1739894125098,0.004,95604.0,95603.0,0.1143]
[1739894125498,0.004,95604.0,95603.0,0.3235361]
[1739894125896,0.006,95604.0,95603.0,0.001]
[1739894126202,0.006,95604.0,95603.0,0.3325561]
[1739894126401,0.006,95604.0,95603.0,0.001]
[1739894127097,0.1093,95613.0,95603.0,0.001]
[1739894127303,0.2092287,95607.0,95604.0,0.2092319]
[1739894127501,0.2092287,95607.0,95603.0,0.001]
[1739894127705,0.2092287,95607.0,95605.0,0.209231]
[1739894128304,0.1093,95613.0,95603.0,0.001]
[1739894128606,0.11918312,95613.0,95608.0,0.2092243]
[1739894128800,0.2092211,95610.0,95608.0,0.2092243]
[1739894129100,0.1093,95613.0,95604.0,0.001]
[1739894129406,0.1093,95613.0,95605.0,0.2092301]
[1739894129797,0.1133,95613.0,95605.0,0.2092301]
[1739894129997,0.1133,95613.0,95603.0,0.001]
[1739894130306,0.2092339,95604.0,95603.0,0.001]
[1739894130709,0.5700225,95610.0,95603.0,0.001]
[1739894130905,0.2092231,95609.0,95608.0,0.2092248]
[1739894131207,0.3608,95610.0,95603.0,0.001]
[1739894131403,0.2092307,95606.0,95604.0,0.12232]
[1739894131711,0.2092307,95606.0,95603.0,0.2102356]
[1739894132006,0.2092339,95604.0,95603.0,0.001]
[1739894132397,0.72216001,95610.0,95604.0,0.001]
[1739894132602,0.2092317,95605.0,95604.0,0.001]
[1739894133001,0.2092365,95603.0,95600.0,0.2092415]
[1739894133312,0.01008485,95603.0,95592.0,0.3608]
[1739894133498,0.2092484,95598.0,95597.0,0.2092483]
[1739894134095,0.00056001,95610.0,95595.0,0.3608]
[1739894134305,0.1093,95613.0,95612.0,0.2092164]
[1739894136002,0.0546,95613.0,95612.0,0.2190973]
[1739894136209,0.0562,95626.0,95623.0,0.2091903]
[1739894136602,0.2091943,95623.0,95617.0,0.2092048]
[1739894136801,0.0562,95626.0,95617.0,0.2092048]
[1739894137512,0.007807,95624.0,95622.0,0.2091932]
[1739894138013,0.2169976,95624.0,95622.0,0.2091932]
[1739894138313,0.5699936,95623.0,95617.0,0.2092047]
[1739894138701,0.5699936,95623.0,95615.0,0.00015687]
[1739894139009,0.2092073,95617.0,95615.0,0.00015687]
[1739894139417,0.3608,95616.0,95615.0,0.00015687]
[1739894139691,0.2092073,95617.0,95615.0,0.00015687]
[1739894140140,0.2169981,95624.0,95617.0,0.2092043]
[1739894140929,0.2091953,95622.0,95617.0,0.2092043]
[1739894141132,0.3608,95621.0,95617.0,0.2092043]
[1739894141523,0.3608,95621.0,95620.0,0.2091989]
[1739894142620,0.3608,95621.0,95615.0,0.00015687]
[1739894142621,0.007807,95624.0,95622.0,0.209194]
[1739894143513,0.0562,95626.0,95622.0,0.209194]
[1739894143704,0.5699585,95639.0,95631.0,0.2091729]
[1739894143905,0.1608,95638.0,95635.0,0.2091652]
[1739894144100,0.1608,95638.0,95632.0,0.3608]
[1739894144306,0.1608,95638.0,95637.0,0.2091617]
[1739894144503,0.3608,95661.0,95632.0,0.3608]
[1739894144504,0.12631924,95660.0,95632.0,0.3608]
[1739894144705,0.00804878,95647.0,95640.0,0.3608]
[1739894144913,0.0564,95649.0,95646.0,0.2091408]
[1739894145606,0.265537,95649.0,95642.0,0.20915]
[1739894146303,0.2091418,95647.0,95642.0,0.20915]
[1739894146499,0.2091418,95647.0,95646.0,0.001]
[1739894147616,0.2091448,95645.0,95642.0,0.001]
[1739894148111,0.2091469,95644.0,95642.0,0.001]
[1739894148309,0.4158,95643.0,95642.0,0.001]
[1739894148509,0.055,95643.0,95642.0,0.001]
[1739894149613,0.2641486,95643.0,95642.0,0.001]
[1739894150715,0.055,95643.0,95636.0,0.00015687]
[1739894150917,0.2091617,95637.0,95636.0,0.00015687]
[1739894153518,0.2091617,95637.0,95636.0,0.00115687]
[1739894154916,0.2101617,95637.0,95636.0,0.00115687]
[1739894155112,0.21992932,95637.0,95636.0,0.00115687]
[1739894157109,0.21992932,95637.0,95636.0,1e-08]
[1739894157520,0.2092091,95616.0,95613.0,0.209212]
[1739894158420,0.2092091,95616.0,95612.0,0.06316938]
[1739894158620,0.2092091,95616.0,95614.0,0.2092114]
[1739894158812,0.2092115,95615.0,95612.0,0.06316938]
[1739894159925,0.0534,95621.0,95612.0,0.06316938]
[1739894160221,0.2092142,95613.0,95612.0,0.06316938]
[1739894160524,0.2092164,95612.0,95611.0,0.91400877]
[1739894160713,0.3182164,95612.0,95611.0,0.91344877]
[1739894160910,0.6790164,95612.0,95611.0,0.91344877]
[1739894161112,0.68884139,95612.0,95611.0,0.91344877]
[1739894161520,0.109,95612.0,95611.0,0.91344877]
[1739894161719,0.109,95612.0,95611.0,1.12266737]
[1739894161720,0.2092164,95612.0,95611.0,1.12266737]
[1739894161918,0.2092164,95612.0,95611.0,0.91344877]
[1739894162811,0.21915179,95612.0,95611.0,0.91344877]
[1739894163023,0.21915179,95612.0,95611.0,0.00156877]
[1739894167218,0.2092164,95612.0,95611.0,0.00156877]
[1739894170530,0.3608,95614.0,95611.0,0.00156877]
[1739894170720,0.3608,95618.0,95611.0,0.00156877]
[1739894171326,0.3608,95618.0,95616.0,0.2092071]
[1739894171527,0.3608,95618.0,95617.0,0.2092054]
[1739894172228,0.1661,95633.0,95623.0,0.2091923]
[1739894172616,0.3752709,95633.0,95623.0,0.2091923]
[1739894172815,0.1661,95633.0,95623.0,0.2091923]
[1739894173416,0.2091837,95627.0,95623.0,0.2091923]
[1739894174024,0.50158974,95633.0,95623.0,0.2091923]
[1739894174528,0.29241924,95633.0,95623.0,0.2091923]
[1739894174829,0.2091736,95632.0,95623.0,0.2091923]
[1739894175418,0.2091751,95631.0,95623.0,0.2091923]
[1739894175621,0.00215659,95624.0,95623.0,0.2091923]
[1739894177230,0.00215659,95624.0,95622.0,0.1632]
[1739894177427,0.2091923,95623.0,95621.0,0.01016505]
[1739894177632,0.2091923,95623.0,95609.0,0.91256]
[1739894177633,0.00215659,95624.0,95623.0,0.2091923]
[1739894179937,0.00015659,95624.0,95623.0,0.2091923]
[1739894180832,0.00215659,95624.0,95623.0,0.2091923]
[1739894182038,0.00215659,95624.0,95621.0,0.01015858]
[1739894182236,0.00215659,95624.0,95612.0,0.1065]
[1739894182432,0.2092164,95612.0,95611.0,0.00156877]
[1739894185538,0.3608,95612.0,95609.0,0.00056]
[1739894185737,0.3608,95612.0,95589.0,0.12216]
[1739894185937,0.209264,95591.0,95589.0,0.12216]
[1739894186139,0.209264,95591.0,95586.0,0.01023312]
[1739894186341,0.209247,95598.0,95587.0,0.20927]
[1739894186541,0.1664,95599.0,95583.0,0.1085]
[1739894186836,0.2092661,95590.0,95582.0,0.4126]
[1739894187139,0.48783924,95593.0,95582.0,0.06203871]
[1739894187335,0.48711924,95593.0,95584.0,0.2092761]
[1739894187540,0.48711924,95593.0,95582.0,0.01023871]
[1739894187541,0.2092765,95585.0,95582.0,0.01023871]
[1739894187736,0.2092765,95585.0,95581.0,0.00172593]
[1739894187929,0.48783924,95593.0,95581.0,0.00172593]
[1739894188135,0.0562,95584.0,95581.0,0.00172593]
[1739894188333,0.209282,95582.0,95581.0,0.00172593]
[1739894190740,0.211282,95582.0,95581.0,0.00172593]
[1739894194037,0.002,95582.0,95581.0,0.00172593]
[1739894194441,0.002,95582.0,95581.0,0.10842593]
[1739894194745,0.002,95582.0,95581.0,0.46922593]
[1739894195247,0.002,95582.0,95581.0,0.47917725]
[1739894196853,0.2212,95597.0,95596.0,0.2092514]
[1739894197445,0.00072,95611.0,95596.0,0.221]
[1739894197643,0.1691,95639.0,95610.0,0.3608]
[1739894197844,0.1691,95639.0,95628.0,0.2091805]
[1739894198049,0.00775875,95633.0,95630.0,0.2091769]
[1739894198343,0.1691,95639.0,95625.0,0.3608]
[1739894198547,0.1691,95639.0,95633.0,0.2091683]
[1739894198743,0.1691,95639.0,95633.0,0.21902209]
[1739894199839,0.1691,95639.0,95633.0,0.00985379]
[1739894200039,0.1691,95639.0,95634.0,0.2091675]
[1739894200240,0.3608,95637.0,95630.0,0.2091757]
[1739894200451,0.3608,95636.0,95630.0,0.2091757]
[1739894200646,0.209172,95633.0,95625.0,0.3608]
[1739894200948,0.209172,95633.0,95625.0,0.37072317]
[1739894201751,0.3608,95634.0,95628.0,0.2091801]
[1739894201947,0.3608,95634.0,95629.0,0.2091774]
[1739894202540,0.3608,95634.0,95625.0,0.37072317]
[1739894202745,0.2091752,95631.0,95625.0,0.37072317]
[1739894203456,0.2091752,95631.0,95626.0,0.209185]
[1739894203753,0.3608,95634.0,95629.0,0.2091788]
[1739894204054,0.00800126,95637.0,95630.0,0.2091764]
[1739894204241,0.1691,95639.0,95631.0,0.2091727]
[1739894204447,0.1691,95639.0,95625.0,0.37072317]
[1739894204753,0.2091616,95638.0,95625.0,0.37072317]
[1739894204955,0.1691,95639.0,95634.0,0.2091672]
[1739894206062,0.209162,95637.0,95634.0,0.2091672]
[1739894206250,0.2091649,95636.0,95625.0,0.37072317]
[1739894206552,0.2091923,95623.0,95622.0,0.00015687]
[1739894206957,0.3608,95627.0,95622.0,0.00015687]
[1739894207152,0.2091713,95633.0,95627.0,0.2091834]
[1739894207562,0.2091728,95632.0,95627.0,0.2091834]
[1739894207757,0.2091773,95630.0,95627.0,0.2091834]
[1739894208062,0.2091794,95629.0,95627.0,0.2091834]
[1739894208358,0.209178,95630.0,95625.0,0.2091879]
[1739894208553,0.209178,95630.0,95627.0,0.209183]
[1739894208753,0.3608,95635.0,95622.0,0.00015687]
[1739894208957,0.5699837,95627.0,95622.0,0.20935007]
[1739894209157,0.5699837,95627.0,95623.0,0.2091914]
[1739894209548,0.5699837,95627.0,95622.0,0.00015687]
[1739894209753,0.5699837,95627.0,95624.0,0.2091898]
[1739894210353,0.3608,95627.0,95622.0,0.00015687]
[1739894210554,0.2091923,95623.0,95622.0,0.00015687]
[1739894211466,0.21927111,95623.0,95622.0,0.00015687]
[1739894212762,0.2091923,95623.0,95622.0,0.00015687]
[1739894214170,0.2091923,95623.0,95622.0,0.00115687]
[1739894215178,0.21921784,95623.0,95622.0,0.00115687]
[1739894215478,0.21921784,95623.0,95622.0,0.00015687]
[1739894215680,0.21921784,95623.0,95622.0,0.00115687]
[1739894215881,0.2091923,95623.0,95622.0,0.00115687]
[1739894216079,0.3608,95627.0,95622.0,0.00115687]
[1739894216267,0.2091923,95623.0,95622.0,0.00115687]
[1739894217679,0.36152,95627.0,95622.0,0.01116472]
[1739894217873,0.3608,95627.0,95622.0,0.01116472]
[1739894218270,0.3608,95627.0,95626.0,0.2091857]
[1739894218971,0.5699835,95627.0,95626.0,0.2091857]
[1739894219666,0.3608,95627.0,95626.0,0.2091857]
[1739894219870,0.01002293,95634.0,95633.0,0.2091704]
[1739894220069,0.2091682,95634.0,95633.0,0.2091704]
[1739894220271,0.2091758,95631.0,95627.0,0.2091829]
[1739894220667,0.17676996,95639.0,95622.0,0.37096472]
[1739894220881,0.17676996,95639.0,95629.0,0.12631924]
[1739894221078,0.17676996,95639.0,95634.0,0.2091678]
[1739894221877,0.00015659,95642.0,95630.0,0.3608]
[1739894222073,0.00015659,95642.0,95638.0,0.2091593]
[1739894222278,0.20930779,95642.0,95638.0,0.2091593]
[1739894222478,0.20930779,95642.0,95639.0,0.209157]
[1739894222674,0.00015659,95642.0,95640.0,0.2091544]
[1739894223471,0.00788772,95652.0,95651.0,0.2091311]
[1739894223671,0.0548,95660.0,95647.0,0.3608]
[1739894223884,0.0548,95660.0,95649.0,0.12631924]
[1739894224077,0.3608,95661.0,95649.0,0.12631924]
[1739894224381,0.3608,95661.0,95656.0,0.2091201]
[1739894224579,0.1101,95668.0,95658.0,0.3608]
[1739894224875,0.0548,95672.0,95665.0,0.2090999]
[1739894225082,0.00779583,95669.0,95665.0,0.2090999]
[1739894225273,0.00779583,95669.0,95660.0,0.12631924]
[1739894225473,0.2091015,95665.0,95660.0,0.12631924]
[1739894225975,0.2091045,95664.0,95660.0,0.12631924]
[1739894226175,0.00779583,95669.0,95658.0,0.3608]
[1739894226478,0.2091272,95653.0,95651.0,0.96726]
[1739894226681,0.2091272,95653.0,95651.0,0.9667]
[1739894226977,0.12631924,95661.0,95651.0,1.12093]
[1739894227183,0.2091184,95657.0,95651.0,1.12093]
[1739894227383,0.2091283,95653.0,95651.0,0.9118]
[1739894228376,0.12631924,95661.0,95651.0,0.9118]
[1739894228577,0.0517,95663.0,95651.0,0.9118]
[1739894228788,0.0517,95663.0,95657.0,0.2091176]
[1739894229085,0.2091143,95659.0,95657.0,0.2091176]
[1739894229588,0.0517,95663.0,95657.0,0.2091176]
[1739894229879,0.36859583,95669.0,95659.0,0.2091132]
[1739894229880,0.00851583,95669.0,95659.0,0.2091132]
[1739894230085,0.209105,95663.0,95660.0,0.2616109]
[1739894230784,0.2091079,95662.0,95660.0,0.0525]
[1739894230981,0.2091184,95657.0,95655.0,0.3608]
[1739894233681,0.2091201,95656.0,95655.0,0.3608]
[1739894233878,0.3608,95665.0,95655.0,0.6919223]
[1739894234078,0.2091115,95660.0,95655.0,0.5699223]
[1739894234478,0.2091115,95660.0,95656.0,0.20912]
[1739894234773,0.2091115,95660.0,95655.0,0.3608]
[1739894234774,0.0564,95664.0,95655.0,0.3608]
[1739894234986,0.2091098,95661.0,95658.0,0.2091137]
[1739894235187,0.2091114,95660.0,95658.0,0.2091137]
[1739894235688,0.2091114,95660.0,95659.0,0.2091136]
[1739894236181,0.00779583,95669.0,95666.0,0.2090983]
[1739894236387,0.2090876,95671.0,95656.0,0.001]
[1739894236688,0.3608,95673.0,95665.0,0.2090996]
[1739894236890,0.2090967,95667.0,95665.0,0.2090996]
[1739894237979,0.2090967,95667.0,95665.0,0.01011601]
[1739894238181,0.3608,95673.0,95667.0,0.2090951]
[1739894238689,0.0526,95678.0,95663.0,0.3608]
[1739894238874,0.2090838,95673.0,95671.0,0.2090873]
[1739894240185,0.6246852,95672.0,95671.0,0.2090873]
[1739894240681,0.2638852,95672.0,95671.0,0.2090873]
[1739894241193,0.6246852,95672.0,95671.0,0.2090873]
[1739894241378,0.00994005,95677.0,95671.0,0.2090873]
[1739894241575,0.261674,95678.0,95666.0,0.0555]
[1739894241777,0.261672,95678.0,95677.0,0.2090742]
[1739894242183,0.0526,95678.0,95668.0,0.00015679]
[1739894242380,0.2090917,95669.0,95668.0,0.00015679]
[1739894242886,0.2090917,95669.0,95668.0,0.20925069]
[1739894243189,0.2090917,95669.0,95668.0,0.00015679]
[1739894245591,0.2091223,95655.0,95654.0,0.91156]
[1739894245890,0.2091289,95652.0,95645.0,0.221]
[1739894246196,0.2091289,95652.0,95639.0,0.2091569]
[1739894246492,0.2091289,95652.0,95631.0,0.1089]
[1739894246697,0.2091289,95652.0,95629.0,0.3608]
[1739894246698,0.0522817,95653.0,95642.0,0.00015679]
[1739894246886,0.5699486,95643.0,95642.0,0.00015679]
[1739894247697,0.2091814,95628.0,95627.0,0.00156864]
[1739894247991,0.5699814,95628.0,95627.0,0.00156864]
[1739894249295,0.0549,95636.0,95627.0,0.21075074]
[1739894250488,0.0549,95636.0,95627.0,0.00156864]
[1739894250695,0.00015679,95637.0,95634.0,0.2091668]
[1739894250989,0.00015679,95637.0,95635.0,0.2091651]
[1739894251395,0.00015679,95637.0,95636.0,0.112]
[1739894251786,0.00015679,95637.0,95636.0,0.3211639]
[1739894253988,0.00015679,95637.0,95636.0,0.3231639]
[1739894254493,0.00015679,95637.0,95636.0,0.002]
[1739894254697,0.00115679,95637.0,95629.0,0.3608]
[1739894254897,0.00115679,95637.0,95635.0,0.2091657]
[1739894256727,0.00015679,95637.0,95636.0,0.0522]
[1739894256927,0.3608,95663.0,95636.0,0.2732]
[1739894257239,0.0538,95668.0,95659.0,0.2091133]
[1739894257410,0.2091082,95662.0,95659.0,0.2091133]
[1739894257610,0.3608,95663.0,95661.0,0.209108]
[1739894257823,0.2090764,95676.0,95657.0,0.3608]
[1739894258012,0.00015651,95672.0,95671.0,0.2090873]
[1739894259006,0.00015651,95672.0,95671.0,0.21927884]
[1739894260998,0.00315651,95672.0,95671.0,0.2100873]
[1739894261193,0.00315651,95672.0,95671.0,0.001]
[1739894261801,0.36395651,95672.0,95671.0,0.001]
[1739894263288,0.37388689,95672.0,95656.0,0.91164]
[1739894263496,0.3608,95662.0,95656.0,0.91164]
[1739894263801,0.2091124,95660.0,95657.0,0.12184]
[1739894263996,0.2091164,95658.0,95656.0,0.0006]
[1739894264202,0.21911869,95658.0,95653.0,0.2216]
[1739894264404,0.21911869,95658.0,95653.0,0.221]
[1739894264604,0.2091189,95657.0,95653.0,0.221]
[1739894265201,0.3608,95654.0,95653.0,0.221]
[1739894266500,0.4137,95654.0,95653.0,0.221]
[1739894266700,0.2091267,95653.0,95640.0,0.2091541]
[1739894267007,0.2091267,95653.0,95639.0,0.01005294]
[1739894267304,0.2091267,95653.0,95640.0,0.2091541]
[1739894268298,0.2161267,95653.0,95652.0,0.00115679]
[1739894268898,0.31243899,95653.0,95652.0,0.00115679]
[1739894270599,0.10331229,95653.0,95652.0,0.00115679]
[1739894270798,0.30543899,95653.0,95652.0,0.00015679]
[1739894270999,0.30743899,95653.0,95652.0,0.00015679]
[1739894272108,0.31143899,95653.0,95652.0,0.00015679]
[1739894272306,0.10231229,95653.0,95652.0,0.00015679]
[1739894274402,0.006,95653.0,95652.0,0.00015679]
[1739894276013,0.006,95653.0,95652.0,0.20928569]
[1739894279312,0.01010411,95674.0,95652.0,0.00375679]
[1739894279506,0.2089922,95715.0,95673.0,0.0522707]
[1739894279707,0.12631924,95710.0,95701.0,0.3608]
[1739894279908,0.12631924,95711.0,95700.0,0.3608]
[1739894280413,0.12631924,95711.0,95688.0,0.3608]
[1739894280618,0.12631924,95700.0,95698.0,0.2090283]
[1739894280916,0.12631924,95710.0,95699.0,0.3608]
[1739894281117,0.12631924,95710.0,95707.0,0.2090074]
[1739894281311,0.0574,95714.0,95707.0,0.2090074]
[1739894281519,0.06769154,95714.0,95707.0,0.2090074]
[1739894281706,0.06769154,95714.0,95709.0,0.2090039]
[1739894281908,0.0574,95714.0,95712.0,0.208997]
[1739894282108,0.06741191,95714.0,95712.0,0.208997]
[1739894282314,0.06741191,95714.0,95707.0,0.3608]
[1739894282508,0.06741191,95714.0,95701.0,0.2090212]
[1739894282812,0.2090025,95710.0,95707.0,0.001]
[1739894283208,0.2090025,95710.0,95704.0,0.2090144]
[1739894284109,0.3608,95713.0,95699.0,0.3608]
[1739894284314,0.12631924,95709.0,95699.0,0.3608]
[1739894284517,0.12631924,95709.0,95700.0,0.209024]
[1739894284813,0.2090224,95701.0,95699.0,0.3608]
[1739894285018,0.3188257,95700.0,95696.0,0.00015679]
[1739894285405,0.1098,95700.0,95696.0,0.00015679]
[1739894285610,0.2090295,95698.0,95696.0,0.00015679]
[1739894285921,0.0556,95697.0,95696.0,0.00015679]
[1739894286311,0.0556,95697.0,95696.0,0.00115679]
[1739894287619,0.06598987,95697.0,95696.0,0.00115679]
[1739894287921,0.06598987,95697.0,95696.0,0.00215679]
[1739894288622,0.0556,95697.0,95696.0,0.00215679]
[1739894288822,0.0565,95700.0,95699.0,0.2090262]
[1739894292525,0.0605,95700.0,95699.0,0.2100262]
[1739894295231,0.0605,95700.0,95699.0,0.001]
[1739894295527,0.269524,95700.0,95699.0,0.001]
[1739894295727,0.2090305,95697.0,95696.0,0.00015679]
[1739894296625,0.3608,95698.0,95680.0,0.3608]
[1739894296818,0.2090637,95682.0,95680.0,0.3608]
[1739894297023,0.055,95681.0,95680.0,0.3608]
[1739894297630,0.055,95681.0,95656.0,0.2091192]
[1739894297927,0.5698893,95671.0,95662.0,0.3608]
[1739894298126,0.0558,95670.0,95665.0,0.00015679]
[1739894298728,0.2090983,95666.0,95665.0,0.00015679]
[1739894299127,0.07401982,95670.0,95665.0,0.00015679]
[1739894299521,0.07401982,95670.0,95669.0,0.001]
[1739894299936,0.2090983,95666.0,95665.0,0.00015679]
[1739894301030,0.07401982,95670.0,95644.0,0.3608]
[1739894301228,0.2091274,95653.0,95644.0,0.3608]
[1739894301433,0.0522,95652.0,95644.0,0.3608]
[1739894302224,0.0502,95652.0,95644.0,0.3608]
[1739894302723,0.0502,95652.0,95647.0,0.2091389]
[1739894302928,0.0502,95652.0,95644.0,0.3608]
[1739894303325,0.0502,95652.0,95650.0,0.2091318]
[1739894304130,0.00015679,95658.0,95646.0,0.3608]
[1739894304324,0.00015679,95658.0,95657.0,0.3608]
[1739894304729,0.09649366,95670.0,95657.0,0.3608]
[1739894304927,0.09649366,95670.0,95659.0,0.2091128]
[1739894304928,0.12631924,95670.0,95659.0,0.2091128]
[1739894305132,0.33540934,95670.0,95659.0,0.2091128]